fUSD/lending_fUSD_20240523
["ID","MTS","AMOUNT","RATE_DAILY","PERIOD"]
[327787967,1716480641987,-500.0,0.00023798,2]
[327787968,1716480641996,-500.0,0.00023798,2]
[327787969,1716480642005,-150.0,0.00023798,2]
[327787970,1716480642015,-500.0,0.00023798,2]
[327787971,1716480642024,-500.0,0.00023798,2]
[327787972,1716480642033,-500.0,0.00023798,2]
[327787973,1716480642042,-500.0,0.00023798,2]
[327787974,1716480642052,-817.94,0.00023798,2]
[327787975,1716480642061,-500.0,0.00023798,2]
[327787976,1716480642070,-500.0,0.00023798,2]
[327787977,1716480642079,-500.0,0.00023798,2]
[327787978,1716480642089,-500.0,0.00023798,2]
[327787979,1716480642099,-500.0,0.00023798,2]
[327787980,1716480642108,-500.0,0.00023798,2]
[327787981,1716480642118,-769.07,0.00023798,2]
[327787982,1716480642127,-500.0,0.00023798,2]
[327787983,1716480642136,-500.0,0.00023798,2]
[327787984,1716480642147,-1100.93,0.00023798,2]
[327787985,1716480642156,-500.0,0.00023798,2]
[327787986,1716480642166,-500.0,0.00023798,2]
[327787987,1716480642175,-1289.09,0.00023798,2]
[327787989,1716480642185,-500.0,0.00023798,2]
[327787991,1716480642194,-500.0,0.00023798,2]
[327787993,1716480642204,-500.0,0.00023798,2]
[327787995,1716480642213,-547.2,0.00023798,2]
[327787997,1716480642225,-500.0,0.00023798,2]
[327787998,1716480642235,-1083.5,0.00023798,2]
[327787999,1716480642244,-2610.4,0.00023798,2]
[327788000,1716480642254,-500.0,0.00023798,2]
[327788002,1716480642263,-1135.31,0.00023798,2]
[327788003,1716480642272,-500.0,0.00023798,2]
[327788004,1716480642281,-244.17088559,0.00023798,2]
[327788005,1716480642291,-500.0,0.00023798,2]
[327788006,1716480642299,-500.0,0.00023798,2]
[327788007,1716480642308,-500.0,0.00023798,2]
[327788008,1716480642317,-500.0,0.00023798,2]
[327788009,1716480642326,-500.0,0.00023798,2]
[327788010,1716480642335,-500.0,0.00023798,2]
[327788011,1716480642345,-538.8,0.00023798,2]
[327788012,1716480642354,-956.24,0.00023798,2]
[327788013,1716480642364,-500.0,0.00023798,2]
[327788015,1716480642373,-500.0,0.00023798,2]
[327788016,1716480642382,-500.0,0.00023798,2]
[327788017,1716480642391,-597.5,0.00023798,2]
[327788018,1716480642400,-500.0,0.00023798,2]
[327788019,1716480642409,-500.0,0.00023798,2]
[327788020,1716480642419,-278.68768077,0.00023798,2]
[327788021,1716480642428,-1694.15,0.00023798,2]
[327788022,1716480642438,-500.0,0.00023798,2]
[327788023,1716480642448,-500.0,0.00023798,2]
[327788024,1716480642458,-500.0,0.00023798,2]
[327788025,1716480642467,-500.0,0.00023798,2]
[327788026,1716480642478,-743.92,0.00023798,2]
[327788027,1716480642487,-500.0,0.00023798,2]
[327788028,1716480642497,-500.0,0.00023798,2]
[327788029,1716480642506,-500.0,0.00023798,2]
[327788030,1716480642516,-500.0,0.00023798,2]
[327788031,1716480642525,-1310.98,0.00023798,2]
[327788032,1716480642534,-500.0,0.00023798,2]
[327788033,1716480642543,-500.0,0.00023798,2]
[327788034,1716480642552,-312.38,0.00023798,2]
[327788035,1716480642562,-500.0,0.00023798,2]
[327788036,1716480642571,-500.0,0.00023798,2]
[327788037,1716480642580,-487.82221837,0.00023798,2]
[327788038,1716480642590,-500.0,0.00023798,2]
[327788039,1716480642599,-500.0,0.00023798,2]
[327788040,1716480642608,-500.0,0.00023798,2]
[327788041,1716480642617,-509.93,0.00023798,2]
[327788042,1716480642627,-2000.0,0.00023799,2]
[327788043,1716480642636,-200.0,0.00023799,2]
[327788044,1716480642646,-2000.0,0.00023799,2]
[327788045,1716480642655,-200.0,0.00023799,2]
[327788046,1716480642664,-150.0,0.00023799,2]
[327788047,1716480642674,-2000.0,0.00023799,2]
[327788048,1716480642683,-200.0,0.00023799,2]
[327788049,1716480642692,-574.34946,0.00023799,2]
[327788050,1716480642702,-2000.0,0.00023799,2]
[327788051,1716480642715,-200.0,0.00023799,2]
[327788052,1716480642727,-767.4917,0.000238,2]
[327788053,1716480642736,-150.0,0.000238,2]
[327788054,1716480642745,-150.0,0.00023808,2]
[327788055,1716480642756,-150.0,0.0002381,2]
[327788056,1716480642765,-150.0,0.00023813,2]
[327788058,1716480642774,-150.0,0.00023813,2]
[327788060,1716480642785,-500.0,0.00023816,4]
[327788062,1716480642799,-500.0,0.00023816,4]
[327788064,1716480642809,-500.0,0.00023816,4]
[327788066,1716480642819,-500.0,0.00023816,4]
[327788068,1716480642829,-500.0,0.00023816,4]
[327788070,1716480642839,-500.0,0.00023816,4]
[327788072,1716480642848,-500.0,0.00023816,4]
[327788074,1716480642858,-500.0,0.00023816,4]
[327788076,1716480642867,-500.0,0.00023816,4]
[327788078,1716480642877,-500.0,0.00023816,2]
[327788079,1716480642887,-500.0,0.00023816,2]
[327788080,1716480642896,-500.0,0.00023816,2]
[327788082,1716480642906,-500.0,0.00023816,2]
[327788085,1716480642915,-500.0,0.00023816,2]
[327788088,1716480642924,-406.37153946,0.00023816,2]
[327788090,1716480642933,-699.04,0.00023816,2]
[327788092,1716480642942,-500.0,0.00023816,2]
[327788094,1716480642952,-500.0,0.00023816,2]
[327788096,1716480642961,-500.0,0.00023816,2]
[327788098,1716480642972,-500.0,0.00023816,2]
[327788100,1716480642981,-500.0,0.00023816,2]
[327788101,1716480642991,-500.0,0.00023816,2]
[327788102,1716480643000,-500.0,0.00023816,2]
[327788103,1716480643010,-1750.67,0.00023816,2]
[327788104,1716480643019,-500.0,0.00023816,2]
[327788105,1716480643029,-479.07946037,0.00023816,2]
[327788106,1716480643039,-500.0,0.00023816,2]
[327788107,1716480643049,-1024.0,0.00023816,2]
[327788108,1716480643059,-500.0,0.00023816,2]
[327788109,1716480643068,-2745.96,0.00023816,2]
[327788110,1716480643078,-150.0,0.00023822,2]
[327788111,1716480643087,-962.20611058,0.00023822,2]
[327788112,1716480643097,-150.0,0.00023822,2]
[327788113,1716480643107,-150.0,0.00023822,2]
[327788114,1716480643117,-300.0,0.00023822,2]
[327788115,1716480643126,-150.0,0.00023822,2]
[327788116,1716480643136,-201.36,0.00023822,2]
[327788117,1716480643146,-150.0,0.00023823,2]
[327788118,1716480643155,-226.24077098,0.00023835,2]
[327788119,1716480643164,-285.16752134,0.0002384,2]
[327788120,1716480643174,-150.0,0.00023841,2]
[327788121,1716480643183,-601.08,0.00023841,2]
[327788122,1716480643193,-500.0,0.00023841,2]
[327788123,1716480643202,-500.0,0.00023841,2]
[327788124,1716480643401,-781.66,0.00023841,2]
[327788125,1716480643411,-500.0,0.00023841,2]
[327788126,1716480643422,-500.0,0.00023841,2]
[327788127,1716480643432,-500.0,0.00023841,2]
[327788128,1716480643442,-500.0,0.00023841,2]
[327788129,1716480643452,-500.0,0.00023841,2]
[327788130,1716480643462,-7420.69,0.00023841,2]
[327788131,1716480643473,-500.0,0.00023841,2]
[327788132,1716480643483,-500.0,0.00023841,2]
[327788133,1716480643493,-493.56103469,0.00023841,2]
[327788134,1716480643502,-500.0,0.00023841,2]
[327788135,1716480643513,-500.0,0.00023841,2]
[327788136,1716480643523,-500.0,0.00023841,2]
[327788137,1716480643533,-1040.1132784,0.00023842,2]
[327788138,1716480643542,-41303.14746364,0.00023842,2]
[327788139,1716480643552,-352.06,0.00023844,2]
[327788140,1716480643562,-150.0,0.00023844,2]
[327788141,1716480643572,-352.06,0.00023844,2]
[327788142,1716480643582,-150.0,0.00023844,2]
[327788143,1716480643592,-662.78,0.00023844,2]
[327788144,1716480643603,-421.02,0.00023844,2]
[327788145,1716480643613,-421.02,0.00023844,2]
[327788146,1716480643623,-421.02,0.00023844,2]
[327788147,1716480643633,-421.02,0.00023844,2]
[327788148,1716480643643,-421.02,0.00023844,2]
[327788149,1716480643653,-150.0,0.0002385,2]
[327788150,1716480643663,-267.88028052,0.0002385,2]
[327788151,1716480643673,-962.20611058,0.00023861,2]
[327788152,1716480643683,-150.0,0.00023868,2]
[327788153,1716480643694,-150.0,0.00023871,2]
[327788154,1716480643705,-150.0,0.00023873,2]
[327788155,1716480643717,-573.0,0.00023874,2]
[327788156,1716480643729,-150.0,0.00023876,2]
[327788157,1716480643739,-150.0,0.00023878,2]
[327788158,1716480643750,-6042.31219879,0.0002388,2]
[327788159,1716480643759,-150.0,0.00023887,2]
[327788160,1716480643769,-150.0,0.00023889,2]
[327788161,1716480643779,-150.0,0.0002389,2]
[327788162,1716480643792,-150.0,0.00023895,2]
[327788163,1716480643803,-1161.80565033,0.00023897,7]
[327788164,1716480643812,-1345.02804757,0.00023898,2]
[327788165,1716480643822,-176.61826325,0.00023898,2]
[327788166,1716480643831,-4486.42445656,0.00023898,2]
[327788167,1716480643842,-1863.23068554,0.00023898,2]
[327788168,1716480643852,-1537.16993726,0.00023898,2]
[327788169,1716480643862,-159.02281796,0.00023898,2]
[327788170,1716480643872,-1139.93400252,0.00023898,2]
[327788171,1716480643882,-264.89578297,0.00023898,2]
[327788172,1716480643891,-421.10104427,0.00023899,2]
[327788173,1716480643901,-3356.98128976,0.00023899,7]
[327788174,1716480643955,-2543.01871024,0.00023899,7]
[327788175,1716480643964,-14190.33188674,0.000239,2]
[327788176,1716480643979,-681.98124,0.000239,2]
[327788177,1716480643991,-3500.0,0.000239,2]
[327788178,1716480644280,-500.0,0.00023268,2]
[327788179,1716480644290,-883.13,0.00023797,2]
[327788180,1716480644301,-7020.38966841,0.000239,2]
[327788181,1716480644317,-226.96500136,0.000239,2]
[327788182,1716480644328,-499.0,0.000239,7]
[327788183,1716480644339,-344.0,0.000239,2]
[327788184,1716480644351,-3086.06119447,0.000239,2]
[327788185,1716480644363,-962.20611058,0.000239,2]
[327788186,1716480644373,-169.06046506,0.000239,2]
[327788187,1716480644385,-150.0,0.000239,4]
[327788188,1716480644395,-245.68748403,0.000239,2]
[327788189,1716480644405,-150.0,0.00023901,2]
[327788190,1716480644415,-150.0,0.00023902,2]
[327788191,1716480644426,-46267.1344866,0.00023904,2]
[327788192,1716480644437,-150.0,0.00023904,2]
[327788193,1716480644447,-150.0,0.00023909,2]
[327788194,1716480644458,-150.0,0.00023915,2]
[327788195,1716480644469,-150.0,0.00023917,2]
[327788196,1716480644481,-150.0,0.00023921,2]
[327788197,1716480644491,-150.0,0.00023926,2]
[327788198,1716480644501,-150.0,0.00023928,2]
[327788199,1716480644510,-500.0,0.00023928,2]
[327788200,1716480644520,-226.24077098,0.00023929,2]
[327788201,1716480644531,-343.97462296,0.0002393,3]
[327788202,1716480644541,-500.0,0.0002393,3]
[327788203,1716480644551,-500.0,0.0002393,3]
[327788204,1716480644562,-500.0,0.0002393,3]
[327788205,1716480644572,-534.37,0.0002393,3]
[327788206,1716480644582,-500.0,0.0002393,3]
[327788207,1716480644593,-500.0,0.0002393,3]
[327788208,1716480644604,-500.0,0.0002393,3]
[327788209,1716480644614,-500.0,0.0002393,3]
[327788210,1716480644625,-500.0,0.0002393,3]
[327788211,1716480644635,-500.0,0.0002393,3]
[327788212,1716480644646,-892.74,0.0002393,3]
[327788213,1716480644656,-434.98787474,0.0002393,2]
[327788214,1716480644666,-500.0,0.0002393,2]
[327788215,1716480644676,-500.0,0.0002393,2]
[327788216,1716480644686,-500.0,0.0002393,2]
[327788217,1716480644696,-500.0,0.0002393,2]
[327788218,1716480644709,-500.0,0.0002393,2]
[327788219,1716480644723,-500.0,0.0002393,2]
[327788220,1716480644733,-500.0,0.0002393,2]
[327788221,1716480644743,-923.23,0.0002393,2]
[327788222,1716480644754,-500.0,0.0002393,2]
[327788223,1716480644765,-500.0,0.0002393,2]
[327788224,1716480644775,-921.74,0.0002393,2]
[327788225,1716480644787,-500.0,0.0002393,2]
[327788226,1716480644798,-500.0,0.0002393,2]
[327788227,1716480644810,-500.0,0.0002393,2]
[327788228,1716480644820,-500.0,0.0002393,2]
[327788229,1716480644830,-222.20864902,0.0002393,2]
[327788230,1716480644840,-150.0,0.00023933,2]
[327788231,1716480644850,-150.0,0.00023936,2]
[327788232,1716480644860,-150.0,0.00023946,2]
[327788233,1716480644870,-520.14135908,0.00023949,2]
[327788234,1716480644879,-101727.46249,0.0002395,2]
[327788235,1716480644889,-151.0,0.0002395,7]
[327788236,1716480644898,-151.0,0.0002395,7]
[327788237,1716480644907,-151.0,0.0002395,7]
[327788238,1716480644916,-151.0,0.0002395,7]
[327788239,1716480644926,-201.210919,0.0002395,7]
[327788240,1716480644935,-153.342286,0.0002395,7]
[327788241,1716480644945,-166.772652,0.0002395,7]
[327788242,1716480644954,-151.0,0.0002395,7]
[327788243,1716480644964,-150.0,0.00023952,2]
[327788244,1716480644976,-150.0,0.00023952,2]
[327788245,1716480644986,-1500.0,0.00023956,2]
[327788246,1716480644996,-150.0,0.00023962,2]
[327788247,1716480645006,-150.0,0.00023964,2]
[327788248,1716480645016,-151.0,0.00023969,7]
[327788249,1716480645026,-150.0,0.00023971,2]
[327788250,1716480645035,-150.0,0.00023976,2]
[327788251,1716480645045,-150.0,0.00023986,2]
[327788252,1716480645054,-163.18099657,0.00023987,2]
[327788253,1716480645064,-150.0,0.00023987,2]
[327788254,1716480645073,-150.0,0.0002399,2]
[327788255,1716480645084,-150.0,0.00023991,2]
[327788256,1716480645107,-150.0,0.00023993,2]
[327788257,1716480645130,-156.82952959,0.00023996,2]
[327788258,1716480645152,-283.98120701,0.00023996,2]
[327788259,1716480645176,-160.0,0.00023996,2]
[327788260,1716480645200,-43511.46479823,0.00023997,2]
[327788261,1716480645224,-500.0,0.00023997,2]
[327788262,1716480645247,-628.07966112,0.00023998,2]
[327788264,1716480645264,-1886.98791191,0.00023998,2]
[327788265,1716480645273,-206.59062887,0.00023998,2]
[327788267,1716480645283,-1184.60018868,0.00023998,2]
[327788268,1716480645292,-1095.19911458,0.00023998,2]
[327788269,1716480645302,-597.0571946,0.00023998,2]
[327788270,1716480645311,-234.8704364,0.00023998,2]
[327788271,1716480645321,-16967.0228504,0.00023998,2]
[327788272,1716480645330,-3503.5390714,0.00023998,2]
[327788273,1716480645340,-3749.5053815,0.00023999,2]
[327788274,1716480645350,-10062.56515212,0.00023999,2]
[327788275,1716480645360,-1042.7175055,0.00023999,10]
[327788276,1716480645370,-155.317315,0.00023999,7]
[327788277,1716480645379,-151.0,0.00023999,7]
[327788278,1716480645389,-500.0,0.00023999,2]
[327788279,1716480645399,-500.0,0.00023999,2]
[327788280,1716480645408,-500.0,0.00023999,2]
[327788281,1716480645418,-500.0,0.00023999,2]
[327788282,1716480645427,-500.0,0.00023999,2]
[327788283,1716480645437,-500.0,0.00023999,2]
[327788284,1716480645447,-500.0,0.00023999,2]
[327788285,1716480645456,-500.0,0.00023999,2]
[327788286,1716480645465,-500.0,0.00023999,2]
[327788287,1716480645476,-500.0,0.00023999,2]
[327788288,1716480645486,-500.0,0.00023999,2]
[327788289,1716480645495,-500.0,0.00023999,2]
[327788290,1716480645505,-500.0,0.00023999,2]
[327788291,1716480645515,-500.0,0.00023999,2]
[327788292,1716480645525,-500.0,0.00023999,2]
[327788293,1716480645534,-500.0,0.00023999,2]
[327788294,1716480645543,-500.0,0.00023999,2]
[327788295,1716480645553,-500.0,0.00023999,2]
[327788296,1716480645563,-500.0,0.00023999,2]
[327788297,1716480645572,-315.08688292,0.00023999,2]
[327788298,1716480645582,-150.0,0.00023999,2]
[327788299,1716480645591,-200104.14507015,0.00024,13]
[327788300,1716480645600,-813208.20306936,0.00024,5]
[327788307,1716480645814,-1164.44464056,0.00024,5]
[327788309,1716480645826,-5461.17607094,0.00024,5]
[327788318,1716480645892,-3029.37039968,0.00024,5]
[327788320,1716480645904,-24755.10487395,0.00024,5]
[327788349,1716480646171,-352.06,0.00023022,2]
[327788351,1716480646180,-556.52432981,0.00023542,2]
[327788353,1716480646190,-196.46248303,0.000239,2]
[327788355,1716480646199,-151.0,0.0002395,7]
[327788357,1716480646208,-380840.85933267,0.00024,5]
[327788359,1716480646219,-6545.359872,0.00024,5]
[327788736,1716480657036,150.0,0.00017655,2]
[327788737,1716480657096,150.0,0.00017737,2]
[327788738,1716480657138,150.0,0.00017737,2]
[327788739,1716480657196,150.0,0.000176,2]
[327788740,1716480657251,150.0,0.00017775,2]
[327788741,1716480657303,150.0,0.00017576,2]
[327788742,1716480657364,150.0,0.00017765,2]
[327788743,1716480657498,150.0,0.0001774,2]
[327788744,1716480657542,150.0,0.00017734,2]
[327788745,1716480657602,150.0,0.00017746,2]
[327788746,1716480657698,150.0,0.00017628,2]
[327788747,1716480657756,150.0,0.00017545,2]
[327788748,1716480657808,300.0,0.00019265,2]
[327788758,1716480704652,929.62617325,0.00019265,2]
[327788759,1716480782405,3881.95677998,0.000192,2]
[327788760,1716480922035,2750.0,0.00019,2]
[327788761,1716480952950,190.79,0.00013973,2]
[327788771,1716481195881,6149.57611768,0.00013973,2]
[327788776,1716481338236,889.06,0.00019897,2]
[327788777,1716481527916,185765.53188413,0.00019897,2]
[327788795,1716481549624,-152.27,0.00027068,30]
[327788919,1716481832692,-1476.0,0.000204,3]
[327788920,1716481832702,-844.6,0.00020871,2]
[327788921,1716481832712,-154.52979959,0.000209,2]
[327788922,1716481832721,-1096.71342418,0.00021,2]
[327788923,1716481832734,-804.43551989,0.00021,2]
[327788924,1716481832745,-898.85105593,0.00021,2]
[327788925,1716481832755,-3003.54626781,0.00021172,2]
[327788926,1716481832764,-154.52979958,0.00021383,2]
[327788927,1716481832774,-131.83287668,0.00021598,2]
[327788928,1716481832795,-373.36626039,0.00021598,2]
[327788929,1716481832804,-226.63373961,0.00021693,2]
[327788930,1716481832868,-23.36626039,0.00021693,2]
[327788931,1716481832877,-232.6093339,0.00021713,2]
[327788932,1716481832889,-6985.3784,0.00021713,2]
[327788933,1716481832901,-16672.0122661,0.00021713,2]
[327788934,1716481832911,-169.16,0.00021713,2]
[327788935,1716481832920,-499.99,0.00021713,2]
[327788936,1716481832929,-2129.21,0.00021732,2]
[327788937,1716481832940,-175.99,0.00021745,2]
[327788938,1716481832949,-634.76,0.00021751,2]
[327788939,1716481832959,-250.0,0.00021754,2]
[327788940,1716481832968,-1279.3,0.00021764,2]
[327788941,1716481832978,-200.0,0.00021773,2]
[327788942,1716481832987,-154.52979958,0.00021867,2]
[327788943,1716481832997,-243.18,0.00021917,2]
[327788944,1716481833007,-2000.0,0.00021918,2]
[327788945,1716481833017,-320.75,0.00021918,2]
[327788946,1716481833027,-243.18,0.00021977,2]
[327788947,1716481833037,-9147.77310504,0.0002199,2]
[327788948,1716481833047,-8936.81,0.00022,2]
[327788949,1716481833056,-243.18,0.00022037,2]
[327788950,1716481833066,-1000.0,0.00022067,2]
[327788951,1716481833076,-153.92769206,0.00022077,2]
[327788952,1716481833092,-243.18,0.00022097,2]
[327788953,1716481833102,-255.66,0.00022101,2]
[327788954,1716481833112,-157.47813499,0.00022123,2]
[327788955,1716481833124,-243.18,0.00022157,2]
[327788956,1716481833133,-308.89,0.0002216,2]
[327788957,1716481833143,-152.96549235,0.00022204,2]
[327788959,1716481833153,-243.18,0.00022217,2]
[327788961,1716481833164,-243.18,0.00022277,2]
[327788963,1716481833173,-390.5,0.00022316,2]
[327788965,1716481833183,-243.18,0.00022337,2]
[327788967,1716481833192,-154.52979958,0.0002235,2]
[327788969,1716481833201,-243.18,0.00022398,2]
[327788971,1716481833211,-243.18,0.00022458,2]
[327788973,1716481833220,-243.18,0.00022518,2]
[327788975,1716481833230,-243.18,0.00022578,2]
[327788977,1716481833239,-243.18,0.00022638,2]
[327788979,1716481833249,-243.18,0.00022698,2]
[327788981,1716481833259,-243.18,0.00022758,2]
[327788983,1716481833269,-999.92,0.00022788,2]
[327788985,1716481833278,-243.18,0.00022818,2]
[327788987,1716481833288,-154.52979958,0.00022833,2]
[327788989,1716481833297,-219.59864148,0.00022873,2]
[327788991,1716481833307,-243.18,0.00022878,2]
[327788993,1716481833316,-151.56768369,0.00022896,2]
[327788995,1716481833326,-243.18,0.00022939,2]
[327788997,1716481833335,-243.18,0.00022999,2]
[327788999,1716481833344,-2850.0,0.00023,2]
[327789001,1716481833354,-150.0,0.00023001,2]
[327789003,1716481833364,-150.0,0.00023001,2]
[327789005,1716481833374,-352.06,0.00023001,2]
[327789007,1716481833384,-150.0,0.00023001,2]
[327789009,1716481833394,-352.06,0.00023001,2]
[327789011,1716481833403,-326.54,0.00023001,2]
[327789013,1716481833413,-243.18,0.00023059,2]
[327789018,1716481833625,-151.56768369,0.00023062,2]
[327789019,1716481833649,-844.6,0.00023135,2]
[327789020,1716481833659,-153.92769206,0.00023271,2]
[327789021,1716481833669,-150.87239784,0.00023286,2]
[327789022,1716481833679,-154.52979958,0.00023317,2]
[327789023,1716481833691,-153.3265387,0.00023395,2]
[327789024,1716481833700,-1564.36069654,0.00023567,2]
[327789025,1716481833710,-210.7626,0.00023597,2]
[327789026,1716481833720,-5978.73394616,0.00023598,2]
[327789027,1716481833730,-10975.0346,0.00023697,2]
[327789028,1716481833740,-8306.0073,0.00023697,2]
[327789029,1716481833749,-1000.0,0.00023697,2]
[327789030,1716481833759,-11455.6021,0.00023697,2]
[327789031,1716481833768,-8258.7905,0.00023697,2]
[327789032,1716481833777,-1000.0,0.00023697,2]
[327789033,1716481833787,-2500.0,0.00023697,2]
[327789034,1716481833796,-1233.838,0.00023698,2]
[327789035,1716481833805,-191.02905912,0.0002371,2]
[327789036,1716481833815,-10000.0,0.00023716,2]
[327789037,1716481833824,-150.0,0.00023743,2]
[327789038,1716481833834,-11622.54345875,0.0002376,2]
[327789039,1716481833843,-310.72896,0.0002376,2]
[327789040,1716481833853,-1738.84,0.00023794,2]
[327789041,1716481833863,-1235.37,0.00023796,2]
[327789042,1716481833872,-500.0,0.00023796,2]
[327789043,1716481833882,-6424.24,0.00023796,2]
[327789044,1716481833892,-2564.99,0.00023796,2]
[327789045,1716481833901,-500.0,0.00023796,2]
[327789046,1716481833910,-500.0,0.00023796,2]
[327789047,1716481833920,-500.0,0.00023796,2]
[327789048,1716481833929,-1254.34,0.00023796,2]
[327789049,1716481833940,-500.0,0.00023796,2]
[327789050,1716481833949,-1378.72,0.00023796,2]
[327789051,1716481833958,-582.83,0.00023796,2]
[327789052,1716481833968,-500.0,0.00023796,2]
[327789053,1716481833978,-500.0,0.00023796,2]
[327789054,1716481833988,-732.55,0.00023796,2]
[327789055,1716481833998,-572.6,0.00023796,2]
[327789056,1716481834007,-500.0,0.00023796,2]
[327789057,1716481834018,-547.5,0.00023796,2]
[327789058,1716481834027,-500.0,0.00023796,2]
[327789059,1716481834037,-500.0,0.00023796,2]
[327789060,1716481834046,-500.0,0.00023796,2]
[327789061,1716481834055,-500.0,0.00023796,2]
[327789062,1716481834065,-500.0,0.00023796,2]
[327789063,1716481834074,-500.0,0.00023796,2]
[327789064,1716481834086,-1256.36,0.00023796,2]
[327789065,1716481834097,-545.58,0.00023796,2]
[327789066,1716481834107,-500.0,0.00023796,2]
[327789067,1716481834116,-867.05,0.00023796,2]
[327789068,1716481834127,-741.74,0.00023796,2]
[327789069,1716481834136,-1368.5,0.00023796,2]
[327789070,1716481834146,-500.0,0.00023796,2]
[327789071,1716481834155,-911.96,0.00023796,2]
[327789072,1716481834165,-500.0,0.00023796,2]
[327789073,1716481834176,-500.0,0.00023796,2]
[327789074,1716481834185,-365.0,0.00023797,2]
[327789075,1716481834194,-551.44,0.00023797,2]
[327789076,1716481834204,-500.0,0.00023797,2]
[327789077,1716481834213,-500.0,0.00023797,2]
[327789078,1716481834222,-500.0,0.00023797,2]
[327789079,1716481834231,-500.0,0.00023797,2]
[327789080,1716481834241,-500.0,0.00023797,2]
[327789081,1716481834250,-500.0,0.00023797,2]
[327789082,1716481834260,-500.0,0.00023797,2]
[327789083,1716481834269,-500.0,0.00023797,2]
[327789084,1716481834279,-500.0,0.00023797,2]
[327789085,1716481834288,-500.0,0.00023797,2]
[327789086,1716481834297,-384.5,0.00023797,2]
[327789087,1716481834306,-500.0,0.00023797,2]
[327789088,1716481834315,-500.0,0.00023797,2]
[327789089,1716481834324,-500.0,0.00023797,2]
[327789090,1716481834334,-500.0,0.00023797,2]
[327789091,1716481834343,-500.0,0.00023797,2]
[327789092,1716481834352,-500.0,0.00023797,2]
[327789093,1716481834362,-611.66,0.00023797,2]
[327789094,1716481834372,-500.0,0.00023797,2]
[327789095,1716481834382,-500.0,0.00023797,2]
[327789096,1716481834391,-500.0,0.00023797,2]
[327789097,1716481834400,-500.0,0.00023797,2]
[327789098,1716481834410,-500.0,0.00023797,2]
[327789099,1716481834419,-500.0,0.00023797,2]
[327789100,1716481834429,-500.0,0.00023797,2]
[327789101,1716481834440,-500.0,0.00023797,2]
[327789102,1716481834450,-500.0,0.00023797,2]
[327789103,1716481834460,-500.0,0.00023797,2]
[327789104,1716481834470,-896.0,0.00023797,2]
[327789105,1716481834479,-500.0,0.00023797,2]
[327789106,1716481834488,-500.0,0.00023797,2]
[327789107,1716481834498,-500.0,0.00023797,2]
[327789108,1716481834507,-500.0,0.00023797,2]
[327789109,1716481834517,-500.0,0.00023797,2]
[327789110,1716481834527,-500.0,0.00023797,2]
[327789111,1716481834536,-500.0,0.00023797,2]
[327789112,1716481834544,-983.69,0.00023797,2]
[327789113,1716481834554,-500.0,0.00023797,2]
[327789114,1716481834563,-500.0,0.00023797,2]
[327789115,1716481834572,-500.0,0.00023797,2]
[327789116,1716481834582,-1212.19,0.00023797,2]